[Event "Chinese Team-ch Men 2025"]
[Site "Zhang Jiakou Hebei"]
[Date "2025.04.25"]
[Round "1.17"]
[White "Ye, Xuqing"]
[Black "Kong, Xiangrui"]
[Result "0-1"]
[Annotator "ChessBase"]
[ECO "A48"]
[WhiteElo "1938"]
[BlackElo "2451"]
[PlyCount "86"]
[EventDate "2025.04.26"]
[EventType "team-tourn"]
[EventCountry "CHN"]
[SourceTitle "playchess.com"]
[Source "ChessBase"]
[SourceQuality "1"]
[TimeControl "5400+30"]

1. d4 {[%emt 0:00:02]} Nf6 {[%emt 0:00:33]} 2. Bf4 {[%emt 0:00:09]} g6 {[%emt 0:00:35]} 3. Nf3 {[%emt 0:00:36]} Bg7 {[%emt 0:00:13]} 4. e3 {[%emt 0:02:08]} O-O {[%emt 0:00:09]} 5. Nbd2 {[%emt 0:01:18]} d6 {[%emt 0:01:33]} 6. Be2 {[%emt 0:00:48]} Nh5 {[%emt 0:00:34]} 7. Bg5 {[%emt 0:02:33]} h6 {[%emt 0:00:47]} 8. Bh4 {[%emt 0:00:27]} g5 {[%emt 0:00:26]} 9. Nxg5 {[%emt 0:07:21]} hxg5 {[%emt 0:00:42]} 10. Bxg5 {[%emt 0:00:05]} Nf6 {[%emt 0:00:22]} 11. h4 {[%emt 0:01:33]} c5 {[%emt 0:01:07]} 12. h5 {[%emt 0:00:57]} Nh7 {[%emt 0:02:35]} 13. h6 {[%emt 0:01:33]} Bxd4 {[%emt 0:03:39]} 14. exd4 {[%emt 0:02:27]} Nxg5 {[%emt 0:00:04]} 15. Bd3 {[%emt 0:11:26]} Qd7 {[%emt 0:15:24]} 16. Rh5 {[%emt 0:11:47]} Qe6+ {[%emt 0:06:39]} 17. Kf1 {[%emt 0:00:10]} Nh7 {[%emt 0:06:09]} 18. Bf5 {[%emt 0:01:36]} Qxf5 {[%emt 0:06:55]} 19. Rxf5 {[%emt 0:00:07]} Bxf5 {[%emt 0:00:02]} 20. Qf3 {[%emt 0:00:23]} Bxc2 {[%emt 0:00:39]} 21. Ne4 {[%emt 0:00:25]} Kh8 {[%emt 0:04:35]} 22. dxc5 {[%emt 0:01:26]} Bxe4 {[%emt 0:00:40]} 23. Qxe4 {[%emt 0:00:09]} Nc6 {[%emt 0:00:06]} 24. cxd6 {[%emt 0:01:36]} exd6 {[%emt 0:00:47]} 25. Re1 {[%emt 0:00:46]} Rg8 {[%emt 0:13:00]} 26. Qd5 {[%emt 0:00:50]} Nf6 {[%emt 0:06:28]} 27. Qxd6 {[%emt 0:02:03]} Rg6 {[%emt 0:00:03]} 28. Qc7 {[%emt 0:01:13]} Rxh6 {[%emt 0:01:27]} 29. f3 {[%emt 0:04:16]} Nb4 {[%emt 0:10:13]} 30. Qc4 {[%emt 0:08:11]} Nbd5 {[%emt 0:00:39]} 31. Re5 {[%emt 0:00:00]} Rd8 {[%emt 0:03:03]} 32. Qd4 {[%emt 0:00:37]} Rd7 {[%emt 0:01:23]} 33. Rf5 {[%emt 0:04:03]} Ne7 {[%emt 0:00:58]} 34. Qf4 {[%emt 0:05:13]} Nxf5 {[%emt 0:00:02]} 35. Qxf5 {[%emt 0:00:07]} Rd2 {[%emt 0:03:49]} 36. Kg1 {[%emt 0:00:42]} Rxb2 {[%emt 0:00:09]} 37. a4 {[%emt 0:01:05]} Ra2 {[%emt 0:01:04]} 38. a5 {[%emt 0:01:04]} Kg7 {[%emt 0:01:12]} 39. g4 {[%emt 0:00:42]} Nh7 {[%emt 0:00:23]} 40. Qe5+ {[%emt 0:00:36]} Kg8 {[%emt 0:00:17]} 41. Qd5 {[%emt 0:01:00]} Rhh2 {[%emt 0:01:14]} 42. Qd8+ {[%emt 0:00:21]} Nf8 {[%emt 0:00:08]} 43. Qg5+ {[%emt 0:00:11]} Ng6 {[%emt 0:00:06]} 0-1

[Event "Chinese Team-ch Men 2025"]
[Site "Zhang Jiakou Hebei"]
[Date "2025.04.25"]
[Round "1.18"]
[White "Xie, Kaifan"]
[Black "Yu, Zhe"]
[Result "1-0"]
[Annotator "ChessBase"]
[ECO "A67"]
[WhiteElo "2435"]
[BlackElo "1837"]
[PlyCount "93"]
[EventDate "2025.04.26"]
[EventType "team-tourn"]
[EventCountry "CHN"]
[SourceTitle "playchess.com"]
[Source "ChessBase"]
[SourceQuality "1"]
[TimeControl "5400+30"]

1. d4 {[%emt 0:00:05]} Nf6 {[%emt 0:00:04]} 2. c4 {[%emt 0:00:23]} c5 {[%emt 0:00:05]} 3. d5 {[%emt 0:00:51]} e6 {[%emt 0:00:05]} 4. Nc3 {[%emt 0:00:30]} exd5 {[%emt 0:00:06]} 5. cxd5 {[%emt 0:00:09]} d6 {[%emt 0:00:11]} 6. e4 {[%emt 0:00:22]} g6 {[%emt 0:00:05]} 7. f4 {[%emt 0:02:48]} Bg7 {[%emt 0:00:06]} 8. Bb5+ {[%emt 0:00:09]} Nfd7 {[%emt 0:00:04]} 9. a4 {[%emt 0:01:02]} O-O {[%emt 0:00:08]} 10. Nf3 {[%emt 0:00:44]} Na6 {[%emt 0:00:12]} 11. O-O {[%emt 0:00:26]} Nb4 {[%emt 0:00:17]} 12. Re1 {[%emt 0:01:50]} a6 {[%emt 0:00:54]} 13. Bf1 {[%emt 0:01:03]} Nf6 {[%emt 0:00:38]} 14. h3 {[%emt 0:06:29]} Re8 {[%emt 0:02:14]} 15. Bc4 {[%emt 0:02:25]} Nd7 {[%emt 0:01:52]} 16. Be3 {[%emt 0:08:30]} Nb6 {[%emt 0:01:44]} 17. Bf1 {[%emt 0:07:22]} a5 {[%emt 0:18:19]} 18. Bf2 {[%emt 0:07:21]} Bd7 {[%emt 0:02:22]} 19. Bh4 {[%emt 0:03:16]} Qb8 {[%emt 0:02:28]} 20. Qd2 {[%emt 0:07:48]} f5 {[%emt 0:03:20]} 21. e5 {[%emt 0:00:28]} dxe5 {[%emt 0:00:44]} 22. fxe5 {[%emt 0:00:19]} Bxe5 {[%emt 0:01:06]} 23. Rxe5 {[%emt 0:00:59]} Rxe5 {[%emt 0:02:22]} 24. Bg3 {[%emt 0:00:14]} Re1 {[%emt 0:14:32]} 25. Bxb8 {[%emt 0:01:48]} Rxa1 {[%emt 0:00:10]} 26. Qh6 {[%emt 0:00:04]} N6xd5 {[%emt 0:08:45]} 27. Ng5 {[%emt 0:00:36]} Nf6 {[%emt 0:00:26]} 28. Be5 {[%emt 0:00:03]} Ra6 {[%emt 0:01:47]} 29. Nxh7 {[%emt 0:00:57]} Be8 {[%emt 0:01:04]} 30. Bxf6 {[%emt 0:00:13]} Rxf6 {[%emt 0:00:56]} 31. Nxf6+ {[%emt 0:00:03]} Kf7 {[%emt 0:00:06]} 32. Nxe8 {[%emt 0:00:14]} Kxe8 {[%emt 0:00:04]} 33. Qxg6+ {[%emt 0:00:07]} Kd7 {[%emt 0:00:27]} 34. Qxf5+ {[%emt 0:00:07]} Kc6 {[%emt 0:04:35]} 35. Qe6+ {[%emt 0:01:31]} Kc7 {[%emt 0:00:12]} 36. Nb5+ {[%emt 0:00:03]} Kd8 {[%emt 0:00:05]} 37. Qf7 {[%emt 0:00:21]} Rd1 {[%emt 0:01:41]} 38. Qc7+ {[%emt 0:00:09]} Ke8 {[%emt 0:00:06]} 39. Nd6+ {[%emt 0:00:03]} Rxd6 {[%emt 0:00:10]} 40. Qxd6 {[%emt 0:00:05]} Nc6 {[%emt 0:01:20]} 41. Be2 {[%emt 0:00:19]} Kf7 {[%emt 0:01:06]} 42. Bh5+ {[%emt 0:00:03]} Kg7 {[%emt 0:00:06]} 43. Qg6+ {[%emt 0:00:04]} Kh8 {[%emt 0:00:40]} 44. Qf6+ {[%emt 0:00:06]} Kg8 {[%emt 0:02:02]} 45. Qf7+ {[%emt 0:00:02]} Kh8 {[%emt 0:00:17]} 46. Bg6 {[%emt 0:00:04]} Ne5 {[%emt 0:01:50]} 47. Qh7# {[%emt 0:00:05]} 1-0

[Event "Chinese Team-ch Men 2025"]
[Site "Zhang Jiakou Hebei"]
[Date "2025.04.25"]
[Round "1.19"]
[White "Zhai, Bugong"]
[Black "Zhu, Hengyi"]
[Result "0-1"]
[Annotator "ChessBase"]
[ECO "A20"]
[WhiteElo "1661"]
[BlackElo "2385"]
[PlyCount "80"]
[EventDate "2025.04.26"]
[EventType "team-tourn"]
[EventCountry "CHN"]
[SourceTitle "playchess.com"]
[Source "ChessBase"]
[SourceQuality "1"]
[TimeControl "5400+30"]

1. c4 {[%emt 0:00:06]} e5 {[%emt 0:00:30]} 2. g3 {[%emt 0:00:15]} Nf6 {[%emt 0:01:23]} 3. Bg2 {[%emt 0:00:38]} c6 {[%emt 0:01:34]} 4. Nf3 {[%emt 0:00:51]} e4 {[%emt 0:01:30]} 5. Nd4 {[%emt 0:03:33]} d5 {[%emt 0:00:10]} 6. cxd5 {[%emt 0:02:38]} Qb6 {[%emt 0:00:19]} 7. Nc2 {[%emt 0:01:34]} Bc5 {[%emt 0:14:24]} 8. O-O {[%emt 0:02:58]} cxd5 {[%emt 0:01:58]} 9. Nc3 {[%emt 0:02:29]} Qe6 {[%emt 0:20:36]} 10. d3 {[%emt 0:10:56]} O-O {[%emt 0:01:53]} 11. dxe4 {[%emt 0:00:07]} dxe4 {[%emt 0:00:14]} 12. Bg5 {[%emt 0:04:46]} Nbd7 {[%emt 0:02:03]} 13. b4 {[%emt 0:07:45]} Bb6 {[%emt 0:05:51]} 14. Be3 {[%emt 0:12:23]} Qc4 {[%emt 0:09:11]} 15. Bxb6 {[%emt 0:00:48]} Nxb6 {[%emt 0:00:26]} 16. Qd4 {[%emt 0:04:59]} Bf5 {[%emt 0:01:02]} 17. Qxc4 {[%emt 0:00:46]} Nxc4 {[%emt 0:00:02]} 18. Nd4 {[%emt 0:00:21]} Bg6 {[%emt 0:00:22]} 19. e3 {[%emt 0:00:26]} Ne5 {[%emt 0:05:05]} 20. Rfb1 {[%emt 0:15:20]} Rfd8 {[%emt 0:05:58]} 21. Bh3 {[%emt 0:18:14]} h5 {[%emt 0:02:19]} 22. a4 {[%emt 0:00:49]} Nh7 {[%emt 0:07:12]} 23. Bf5 {[%emt 0:01:41]} Rxd4 {[%emt 0:00:31]} 24. Bxg6 {[%emt 0:00:08]} Rc4 {[%emt 0:00:13]} 25. Bxh7+ {[%emt 0:01:12]} Kxh7 {[%emt 0:00:01]} 26. Nb5 {[%emt 0:02:59]} Nf3+ {[%emt 0:00:23]} 27. Kg2 {[%emt 0:00:15]} Rd8 {[%emt 0:00:20]} 28. Nxa7 {[%emt 0:03:49]} Rd2 {[%emt 0:01:12]} 29. Rd1 {[%emt 0:00:02]} Re2 {[%emt 0:00:34]} 30. Nb5 {[%emt 0:01:43]} Ne5 {[%emt 0:04:53]} 31. Nd6 {[%emt 0:00:49]} Rcc2 {[%emt 0:05:18]} 32. Rf1 {[%emt 0:00:09]} Ng4 {[%emt 0:00:19]} 33. Nxe4 {[%emt 0:00:54]} Nxe3+ {[%emt 0:00:07]} 34. Kf3 {[%emt 0:00:14]} Nxf1 {[%emt 0:00:23]} 35. Rxf1 {[%emt 0:00:12]} Rb2 {[%emt 0:01:29]} 36. b5 {[%emt 0:01:04]} Rec2 {[%emt 0:01:07]} 37. Ke3 {[%emt 0:00:35]} Rc4 {[%emt 0:01:22]} 38. Ra1 {[%emt 0:00:31]} f6 {[%emt 0:04:01]} 39. f3 {[%emt 0:00:27]} Rb3+ {[%emt 0:00:29]} 40. Kf4 {[%emt 0:00:19]} g5+ {[%emt 0:00:16]} 0-1

[Event "Chinese Team-ch Men 2025"]
[Site "Zhang Jiakou Hebei"]
[Date "2025.04.25"]
[Round "1.21"]
[White "Xu, Yi"]
[Black "Gong, Changda"]
[Result "1/2-1/2"]
[Annotator "ChessBase"]
[ECO "C78"]
[WhiteElo "2480"]
[BlackElo "2131"]
[PlyCount "62"]
[EventDate "2025.04.26"]
[EventType "team-tourn"]
[EventCountry "CHN"]
[SourceTitle "playchess.com"]
[Source "ChessBase"]
[SourceQuality "1"]
[TimeControl "5400+30"]

1. e4 {[%emt 0:00:03]} e5 {[%emt 0:00:05]} 2. Nf3 {[%emt 0:00:06]} Nc6 {[%emt 0:00:02]} 3. Bb5 {[%emt 0:00:07]} a6 {[%emt 0:00:35]} 4. Ba4 {[%emt 0:00:06]} Nf6 {[%emt 0:00:04]} 5. O-O {[%emt 0:00:08]} b5 {[%emt 0:01:50]} 6. Bb3 {[%emt 0:00:05]} Bc5 {[%emt 0:00:04]} 7. c3 {[%emt 0:00:22]} d6 {[%emt 0:00:07]} 8. d4 {[%emt 0:00:44]} Bb6 {[%emt 0:00:04]} 9. Be3 {[%emt 0:00:55]} O-O {[%emt 0:00:25]} 10. Nbd2 {[%emt 0:00:10]} Re8 {[%emt 0:01:04]} 11. h3 {[%emt 0:01:10]} exd4 {[%emt 0:00:33]} 12. cxd4 {[%emt 0:01:05]} Na5 {[%emt 0:00:03]} 13. Bc2 {[%emt 0:01:39]} Bb7 {[%emt 0:00:08]} 14. Qb1 {[%emt 0:19:36]} Nc4 {[%emt 0:08:00]} 15. Nxc4 {[%emt 0:03:56]} bxc4 {[%emt 0:00:04]} 16. Nd2 {[%emt 0:09:31]} Rb8 {[%emt 0:02:00]} 17. Nxc4 {[%emt 0:03:08]} Bxe4 {[%emt 0:00:06]} 18. Bxe4 {[%emt 0:00:32]} Nxe4 {[%emt 0:00:05]} 19. Qd3 {[%emt 0:01:29]} d5 {[%emt 0:24:05]} 20. Ne5 {[%emt 0:01:14]} Qd6 {[%emt 0:00:08]} 21. Qxa6 {[%emt 0:25:27]} Bxd4 {[%emt 0:02:20]} 22. Qxd6 {[%emt 0:00:39]} cxd6 {[%emt 0:00:04]} 23. Nc6 {[%emt 0:01:23]} Bxb2 {[%emt 0:02:41]} 24. Nxb8 {[%emt 0:02:07]} Bxa1 {[%emt 0:00:07]} 25. Rxa1 {[%emt 0:00:06]} Rxb8 {[%emt 0:00:01]} 26. a4 {[%emt 0:00:43]} Nc5 {[%emt 0:04:25]} 27. Rd1 {[%emt 0:06:40]} Nxa4 {[%emt 0:00:45]} 28. Rxd5 {[%emt 0:00:06]} Nb6 {[%emt 0:00:26]} 29. Rxd6 {[%emt 0:01:15]} Nc4 {[%emt 0:00:05]} 30. Rd3 {[%emt 0:00:14]} Nxe3 {[%emt 0:00:04]} 31. Rxe3 {[%emt 0:00:05]} g6 {[%emt 0:00:25]} 1/2-1/2

[Event "Chinese Team-ch Men 2025"]
[Site "Zhang Jiakou Hebei"]
[Date "2025.04.25"]
[Round "1.22"]
[White "Qu, Haoming"]
[Black "Lou, Yiping"]
[Result "0-1"]
[Annotator "ChessBase"]
[ECO "B22"]
[WhiteElo "2066"]
[BlackElo "2464"]
[PlyCount "130"]
[EventDate "2025.04.26"]
[EventType "team-tourn"]
[EventCountry "CHN"]
[SourceTitle "playchess.com"]
[Source "ChessBase"]
[SourceQuality "1"]
[TimeControl "5400+30"]

1. e4 {[%emt 0:00:05]} c5 {[%emt 0:00:11]} 2. Nf3 {[%emt 0:00:20]} e6 {[%emt 0:00:09]} 3. c3 {[%emt 0:00:15]} Nf6 {[%emt 0:00:24]} 4. e5 {[%emt 0:00:23]} Nd5 {[%emt 0:00:06]} 5. d4 {[%emt 0:00:11]} cxd4 {[%emt 0:00:09]} 6. cxd4 {[%emt 0:00:08]} d6 {[%emt 0:00:04]} 7. Bc4 {[%emt 0:00:11]} dxe5 {[%emt 0:00:29]} 8. dxe5 {[%emt 0:00:13]} b6 {[%emt 0:00:18]} 9. O-O {[%emt 0:03:53]} Bb7 {[%emt 0:00:34]} 10. Qe2 {[%emt 0:04:38]} Bc5 {[%emt 0:00:31]} 11. a3 {[%emt 0:02:45]} O-O {[%emt 0:02:03]} 12. Bd3 {[%emt 0:01:50]} Nd7 {[%emt 0:01:31]} 13. Rd1 {[%emt 0:09:04]} Qc7 {[%emt 0:03:23]} 14. Bg5 {[%emt 0:19:49]} h6 {[%emt 0:08:22]} 15. Bd2 {[%emt 0:03:26]} Rfd8 {[%emt 0:01:36]} 16. b4 {[%emt 0:11:23]} Bf8 {[%emt 0:06:41]} 17. Ra2 {[%emt 0:03:23]} a5 {[%emt 0:01:29]} 18. Rc1 {[%emt 0:18:33]} Qb8 {[%emt 0:00:24]} 19. bxa5 {[%emt 0:00:07]} bxa5 {[%emt 0:04:39]} 20. Rac2 {[%emt 0:00:46]} Rc8 {[%emt 0:02:30]} 21. Rxc8 {[%emt 0:10:50]} Bxc8 {[%emt 0:00:09]} 22. Bb5 {[%emt 0:00:23]} Nc5 {[%emt 0:04:44]} 23. Nd4 {[%emt 0:00:37]} Bb7 {[%emt 0:00:32]} 24. a4 {[%emt 0:03:12]} Nb4 {[%emt 0:05:16]} 25. Nc3 {[%emt 0:02:22]} Qd8 {[%emt 0:01:17]} 26. Be3 {[%emt 0:00:16]} Qh4 {[%emt 0:01:00]} 27. h3 {[%emt 0:01:38]} Rd8 {[%emt 0:12:00]} 28. Rd1 {[%emt 0:00:55]} Ne4 {[%emt 0:00:20]} 29. Nxe4 {[%emt 0:00:36]} Qxe4 {[%emt 0:00:06]} 30. Nf3 {[%emt 0:00:05]} Nd5 {[%emt 0:05:26]} 31. Bd2 {[%emt 0:00:41]} Nf4 {[%emt 0:02:25]} 32. Qxe4 {[%emt 0:00:57]} Bxe4 {[%emt 0:00:07]} 33. Re1 {[%emt 0:00:02]} Nxh3+ {[%emt 0:06:47]} 34. gxh3 {[%emt 0:01:08]} Bxf3 {[%emt 0:00:06]} 35. Bxa5 {[%emt 0:00:02]} Rc8 {[%emt 0:00:10]} 36. Bb6 {[%emt 0:00:42]} g5 {[%emt 0:17:14]} 37. Kh2 {[%emt 0:01:03]} Bb4 {[%emt 0:01:33]} 38. Re3 {[%emt 0:01:27]} Bd5 {[%emt 0:00:25]} 39. Re2 {[%emt 0:01:03]} Rc1 {[%emt 0:00:43]} 40. f3 {[%emt 0:00:12]} Bxf3 {[%emt 0:06:20]} 41. Rf2 {[%emt 0:00:35]} Be4 {[%emt 0:00:16]} 42. Re2 {[%emt 0:00:13]} Bd5 {[%emt 0:02:39]} 43. Bg1 {[%emt 0:00:51]} h5 {[%emt 0:00:51]} 44. Bd3 {[%emt 0:00:36]} Bc3 {[%emt 0:01:55]} 45. a5 {[%emt 0:00:28]} Bxa5 {[%emt 0:00:24]} 46. Be4 {[%emt 0:00:07]} Bxe4 {[%emt 0:01:01]} 47. Rxe4 {[%emt 0:00:06]} Re1 {[%emt 0:00:42]} 48. Rc4 {[%emt 0:00:35]} Rxe5 {[%emt 0:00:55]} 49. Rc8+ {[%emt 0:00:05]} Kh7 {[%emt 0:00:02]} 50. Bd4 {[%emt 0:00:09]} Rd5 {[%emt 0:00:42]} 51. Rh8+ {[%emt 0:00:15]} Kg6 {[%emt 0:00:06]} 52. Rg8+ {[%emt 0:00:04]} Kf5 {[%emt 0:00:05]} 53. Be3 {[%emt 0:00:04]} f6 {[%emt 0:00:11]} 54. h4 {[%emt 0:00:08]} Bc7+ {[%emt 0:00:29]} 55. Kg2 {[%emt 0:00:05]} gxh4 {[%emt 0:00:15]} 56. Rh8 {[%emt 0:00:06]} Ke4 {[%emt 0:00:10]} 57. Bf2 {[%emt 0:00:04]} Rd2 {[%emt 0:00:19]} 58. Kf1 {[%emt 0:00:16]} Bg3 {[%emt 0:00:18]} 59. Bxg3 {[%emt 0:00:08]} hxg3 {[%emt 0:00:04]} 60. Rxh5 {[%emt 0:00:05]} f5 {[%emt 0:00:05]} 61. Rh6 {[%emt 0:00:05]} Kf3 {[%emt 0:00:13]} 62. Rxe6 {[%emt 0:00:16]} Rd1+ {[%emt 0:00:07]} 63. Re1 {[%emt 0:00:03]} g2+ {[%emt 0:00:06]} 64. Kg1 {[%emt 0:00:04]} Rxe1+ {[%emt 0:00:05]} 65. Kh2 {[%emt 0:00:02]} Rh1# {[%emt 0:00:06]} 0-1

[Event "Chinese Team-ch Men 2025"]
[Site "Zhang Jiakou Hebei"]
[Date "2025.04.25"]
[Round "1.23"]
[White "Meng, Yihan"]
[Black "Wu, Kaige"]
[Result "1-0"]
[Annotator "ChessBase"]
[ECO "B52"]
[WhiteElo "2433"]
[BlackElo "1753"]
[PlyCount "103"]
[EventDate "2025.04.26"]
[EventType "team-tourn"]
[EventCountry "CHN"]
[SourceTitle "playchess.com"]
[Source "ChessBase"]
[SourceQuality "1"]
[TimeControl "5400+30"]

1. e4 {[%emt 0:00:03]} c5 {[%emt 0:00:33]} 2. Nf3 {[%emt 0:00:06]} d6 {[%emt 0:00:13]} 3. Bb5+ {[%emt 0:00:06]} Bd7 {[%emt 0:00:26]} 4. c4 {[%emt 0:00:06]} Nf6 {[%emt 0:00:18]} 5. Nc3 {[%emt 0:00:08]} g6 {[%emt 0:01:02]} 6. d4 {[%emt 0:00:08]} cxd4 {[%emt 0:00:05]} 7. Nxd4 {[%emt 0:00:09]} Bg7 {[%emt 0:00:37]} 8. Be3 {[%emt 0:01:09]} O-O {[%emt 0:01:28]} 9. h3 {[%emt 0:00:36]} a6 {[%emt 0:05:43]} 10. Bxd7 {[%emt 0:01:38]} Nbxd7 {[%emt 0:01:10]} 11. Rc1 {[%emt 0:19:26]} Rc8 {[%emt 0:07:48]} 12. Qe2 {[%emt 0:23:02]} Nc5 {[%emt 0:05:54]} 13. f3 {[%emt 0:05:27]} Nh5 {[%emt 0:06:17]} 14. Qd2 {[%emt 0:00:05]} Ng3 {[%emt 0:16:49]} 15. Rg1 {[%emt 0:00:06]} Be5 {[%emt 0:09:42]} 16. Nde2 {[%emt 0:16:00]} Nxe2 {[%emt 0:03:35]} 17. Kxe2 {[%emt 0:01:45]} Bg7 {[%emt 0:15:42]} 18. Rgd1 {[%emt 0:01:48]} Qe8 {[%emt 0:02:41]} 19. Bh6 {[%emt 0:11:56]} Bxh6 {[%emt 0:01:59]} 20. Qxh6 {[%emt 0:00:05]} f5 {[%emt 0:00:19]} 21. exf5 {[%emt 0:05:32]} Rxf5 {[%emt 0:00:36]} 22. Kf1 {[%emt 0:01:22]} Qf7 {[%emt 0:03:01]} 23. Kg1 {[%emt 0:00:07]} Ne6 {[%emt 0:08:17]} 24. Nd5 {[%emt 0:05:05]} Nf4 {[%emt 0:02:12]} 25. Kh2 {[%emt 0:02:44]} Rf8 {[%emt 0:03:39]} 26. Nxf4 {[%emt 0:00:04]} Rxf4 {[%emt 0:00:03]} 27. Qg5 {[%emt 0:01:56]} Kg7 {[%emt 0:02:29]} 28. Re1 {[%emt 0:00:20]} e5 {[%emt 0:00:57]} 29. c5 {[%emt 0:00:03]} Rf5 {[%emt 0:00:18]} 30. Qg3 {[%emt 0:00:18]} dxc5 {[%emt 0:00:28]} 31. Rxc5 {[%emt 0:00:44]} Qxa2 {[%emt 0:00:27]} 32. Rexe5 {[%emt 0:00:03]} Rf4 {[%emt 0:01:00]} 33. Re7+ {[%emt 0:00:32]} R8f7 {[%emt 0:00:32]} 34. Qxf4 {[%emt 0:02:27]} Rxe7 {[%emt 0:00:07]} 35. Qd4+ {[%emt 0:00:35]} Kf7 {[%emt 0:00:17]} 36. Qh8 {[%emt 0:00:21]} h5 {[%emt 0:00:48]} 37. Rc8 {[%emt 0:00:07]} Qa4 {[%emt 0:00:47]} 38. Qh7+ {[%emt 0:00:50]} Kf6 {[%emt 0:00:31]} 39. Rf8+ {[%emt 0:00:03]} Ke6 {[%emt 0:00:07]} 40. Qxg6+ {[%emt 0:00:02]} Kd7 {[%emt 0:00:41]} 41. Qd3+ {[%emt 0:00:54]} Ke6 {[%emt 0:00:33]} 42. Qg6+ {[%emt 0:02:06]} Kd7 {[%emt 0:00:22]} 43. Qb6 {[%emt 0:00:07]} Qc6 {[%emt 0:00:49]} 44. Rd8+ {[%emt 0:00:29]} Ke6 {[%emt 0:00:04]} 45. Qe3+ {[%emt 0:00:17]} Kf7 {[%emt 0:00:27]} 46. Qf4+ {[%emt 0:00:03]} Kg6 {[%emt 0:00:50]} 47. Rd6+ {[%emt 0:00:06]} Re6 {[%emt 0:00:06]} 48. Rxc6 {[%emt 0:00:05]} Rxc6 {[%emt 0:00:04]} 49. Qb4 {[%emt 0:00:14]} Kf6 {[%emt 0:00:21]} 50. Qxb7 {[%emt 0:00:06]} Re6 {[%emt 0:00:02]} 51. h4 {[%emt 0:00:09]} Ke5 {[%emt 0:00:05]} 52. Qf7 {[%emt 0:00:15]} 1-0

[Event "Chinese Team-ch Men 2025"]
[Site "Zhang Jiakou Hebei"]
[Date "2025.04.25"]
[Round "1.25"]
[White "Ma, Lin"]
[Black "Xu, Yinglun"]
[Result "0-1"]
[Annotator "RC"]
[ECO "B31"]
[WhiteElo "2221"]
[BlackElo "2522"]
[PlyCount "58"]
[EventDate "2025.04.26"]
[EventType "team-tourn"]
[EventCountry "CHN"]
[SourceTitle "playchess.com"]
[Source "ChessBase"]
[SourceQuality "1"]
[TimeControl "5400+30"]

1. e4 {[%emt 0:00:05]} c5 {[%emt 0:01:12]} 2. Nf3 {[%emt 0:00:06]} Nc6 {[%emt 0:04:58]} 3. Bb5 {[%emt 0:03:53]} g6 {[%emt 0:02:27]} 4. Bxc6 {[%emt 0:07:17]} bxc6 {[%emt 0:00:26]} 5. O-O {[%emt 0:00:27]} Bg7 {[%emt 0:00:46]} 6. Re1 {[%emt 0:03:16]} Qc7 {[%emt 0:03:30]} 7. e5 {[%emt 0:08:49]} f6 {[%emt 0:03:55]} 8. d4 {[%emt 0:19:46]} cxd4 {[%emt 0:03:05]} 9. Bf4 {[%emt 0:06:57]} fxe5 {[%emt 0:01:05]} 10. Bxe5 {[%emt 0:01:29]} Bxe5 {[%emt 0:02:23]} 11. Nxe5 {[%emt 0:02:12]} d6 {[%emt 0:10:35]} 12. Nf3 {[%emt 0:01:30]} Nf6 {[%emt 0:01:20]} 13. Nxd4 {[%emt 0:01:09]} O-O {[%emt 0:02:36]} 14. Ne6 {[%emt 0:09:02]} Bxe6 {[%emt 0:00:43]} 15. Rxe6 {[%emt 0:00:02]} Nd5 {[%emt 0:10:39]} 16. Nc3 {[%emt 0:04:04]} Nf4 {[%emt 0:01:16]} 17. Re3 {[%emt 0:00:02]} e5 {[%emt 0:00:20]} 18. Qg4 {[%emt 0:07:43]} Rf7 {[%emt 0:05:38]} 19. Ne2 {[%emt 0:06:01]} Nd5 {[%emt 0:03:11]} 20. Rf3 {[%emt 0:00:06]} Nf6 {[%emt 0:00:51]} 21. Qh4 {[%emt 0:02:36]} Raf8 {[%emt 0:00:23]} 22. c4 {[%emt 0:02:07]} Qb6 {[%emt 0:04:29]} 23. b3 {[%emt 0:01:35]} Qa5 {[%emt 0:03:17]} 24. Rd3 {[%emt 0:04:11]} d5 {[%emt 0:02:08]} 25. Kh1 {[%emt 0:04:16]} Ne4 {[%emt 0:02:04]} 26. Rf3 {[%emt 0:02:40]} Qd2 {[%emt 0:02:51]} 27. Rxf7 {[%emt 0:01:35]} Rxf7 {[%emt 0:00:07]} 28. Ng3 {[%emt 0:00:52]} Qd4 {[%emt 0:01:10]} 29. Qd8+ {[%emt 0:00:36]} Rf8 {[%emt 0:00:04]} 0-1

[Event "Chinese Team-ch Men 2025"]
[Site "Zhang Jiakou Hebei"]
[Date "2025.04.25"]
[Round "1.26"]
[White "Zhao, Chenxi"]
[Black "Sun, Chao"]
[Result "1-0"]
[Annotator "ChessBase"]
[ECO "C41"]
[WhiteElo "2453"]
[BlackElo "2211"]
[PlyCount "57"]
[EventDate "2025.04.26"]
[EventType "team-tourn"]
[EventCountry "CHN"]
[SourceTitle "playchess.com"]
[Source "ChessBase"]
[SourceQuality "1"]
[TimeControl "5400+30"]

1. e4 {[%emt 0:00:05]} d6 {[%emt 0:00:16]} 2. d4 {[%emt 0:00:06]} Nf6 {[%emt 0:00:09]} 3. Nc3 {[%emt 0:00:05]} e5 {[%emt 0:00:09]} 4. Nf3 {[%emt 0:00:04]} Nbd7 {[%emt 0:00:08]} 5. Bc4 {[%emt 0:00:07]} Be7 {[%emt 0:00:08]} 6. O-O {[%emt 0:00:08]} O-O {[%emt 0:00:11]} 7. Re1 {[%emt 0:00:07]} c6 {[%emt 0:00:44]} 8. a4 {[%emt 0:00:08]} a5 {[%emt 0:00:16]} 9. h3 {[%emt 0:00:13]} h6 {[%emt 0:00:10]} 10. Be3 {[%emt 0:00:18]} Re8 {[%emt 0:00:09]} 11. d5 {[%emt 0:00:10]} Nb6 {[%emt 0:01:31]} 12. Nd2 {[%emt 0:00:34]} Bd7 {[%emt 0:00:16]} 13. Qe2 {[%emt 0:00:24]} Rb8 {[%emt 0:00:12]} 14. Bb3 {[%emt 0:02:56]} Qc7 {[%emt 0:21:02]} 15. Rad1 {[%emt 0:01:44]} cxd5 {[%emt 0:02:56]} 16. exd5 {[%emt 0:02:01]} Rec8 {[%emt 0:06:47]} 17. f4 {[%emt 0:05:18]} exf4 {[%emt 0:12:25]} 18. Bxf4 {[%emt 0:00:17]} Bf8 {[%emt 0:04:34]} 19. Qf2 {[%emt 0:00:43]} Re8 {[%emt 0:06:17]} 20. Be3 {[%emt 0:03:34]} Nc8 {[%emt 0:09:14]} 21. Bxh6 {[%emt 0:02:27]} gxh6 {[%emt 0:03:49]} 22. Qxf6 {[%emt 0:00:08]} Bg7 {[%emt 0:00:15]} 23. Qh4 {[%emt 0:03:12]} Rxe1+ {[%emt 0:06:56]} 24. Rxe1 {[%emt 0:01:40]} Nb6 {[%emt 0:03:17]} 25. Nde4 {[%emt 0:00:42]} Kf8 {[%emt 0:01:24]} 26. Nf6 {[%emt 0:04:31]} Bf5 {[%emt 0:03:44]} 27. Rf1 {[%emt 0:02:58]} Bg6 {[%emt 0:01:14]} 28. Nb5 {[%emt 0:01:02]} Qe7 {[%emt 0:02:31]} 29. Nd4 {[%emt 0:02:30]} 1-0